[Event "ETCC Open 2023"]
[Site "Budva"]
[Date "2023.11.11"]
[Round "1.61"]
[White "Sanal, Vahap"]
[Black "Kalezic, Blazo"]
[Result "1-0"]
[ECO "D02"]
[WhiteElo "2608"]
[BlackElo "2401"]
[Annotator "TA"]
[PlyCount "151"]
[EventDate "2023.11.10"]
[EventType "team-tourn"]
[EventCountry "MNE"]
[SourceTitle "playchess.com"]
[Source "ChessBase"]
[SourceQuality "1"]
[WhiteTeam "Turkey"]
[BlackTeam "Montenegro"]
[WhiteTeamCountry "TUR"]
[BlackTeamCountry "MNE"]
[TimeControl "40/5400+30:1800+30"]

{[%evp 16,151,17,0,8,0,2,0,0,2,6,0,4,0,7,0,0,0,0,0,0,0,0,6,16,12,15,14,40,54,65,65,65,64,169,174,158,158,168,160,153,125,94,90,397,422,405,379,580,330,535,530,696,619,483,266,235,253,245,0,358,340,343,306,963,291,703,435,410,97,106,84,252,262,156,97,152,172,201,201,191,176,210,214,157,44,52,59,81,81,81,115,1535,1546,1058,1071,12820,1187,12817,12822,12822,12825,12816,12826,12828,12827,12823,12822,12817,12814,12820,12830,12838,12838,12830,0,12837,12837,12838,12838,12839,12839,12839,12839,12840,12840,12837,12837,12842,12843,12844,12844,12845,12845,12845,12846,12846,12847]} 1. Nf3 {[%emt 0:00:17]} d5 {[%emt 0:00:31]} 2. g3 {[%emt 0:00:20]} g6 {[%emt 0:00:38]} 3. Bg2 {[%emt 0:00:36]} Bg7 {[%emt 0:00:11]} 4. d4 {[%emt 0:00:31]} Nf6 {[%emt 0:01:16]} 5. O-O {[%emt 0:00:10]} O-O {[%emt 0:00:11]} 6. c3 {[%emt 0:01:08]} c6 {[%emt 0:03:10]} 7. Nbd2 {[%emt 0:01:31]} Nbd7 {[%emt 0:03:30]} 8. Re1 {[%emt 0:00:10]} a5 {[%emt 0:00:37]} 9. a4 {[%emt 0:00:50]} c5 {[%emt 0:02:14] [#] D02: 1 d4 d5 2 Nf3 sidelines, including 2...Nf6 3 g3 and 2...Nf6 3 Bf4.} 10. b3 $146 {[%emt 0:00:51]} ({Predecessor:} 10. Nb1 b6 11. Na3 Ne4 12. Bf4 Ba6 13. h4 Ndf6 14. Ng5 e6 15. Be5 Nxf2 16. Kxf2 Ng4+ 17. Kg1 Nxe5 18. dxe5 Bxe5 {0-1 Gledura,B (2652)-Sarana,A (2675) Chess.com Rapid Wk9 Swiss 2022 (1)}) 10... b6 {[%emt 0:02:05]} 11. Bb2 {[%emt 0:00:32]} Bb7 {[%emt 0:01:36] The position is equal.} 12. e3 {[%emt 0:00:22]} e6 {[%emt 0:01:14]} 13. Rc1 {[%emt 0:01:14]} Qc7 {[%emt 0:02:03]} 14. Nb1 {[%emt 0:01:18][%cal Bd2b1,Bb1a3,Ba3b5][%mdl 32]} Rfd8 {[%emt 0:01:13]} 15. Na3 {[%emt 0:00:07]} Rac8 {[%emt 0:00:21]} 16. Nb5 {[%emt 0:00:05]} Qb8 {[%emt 0:00:04]} 17. Qe2 {[%emt 0:01:32]} Ne4 {[%emt 0:04:35]} 18. c4 {[%emt 0:01:12]} dxc4 {[%emt 0:02:08]} 19. bxc4 {[%emt 0:00:21]} cxd4 {[%emt 0:01:56]} 20. exd4 {[%emt 0:00:19]} Nd6 {[%emt 0:00:39]} 21. Red1 {[%emt 0:12:17]} Nxb5 {[%emt 0:05:02]} (21... Nf5 {is more complex.} 22. Ba3 Nf8 23. c5 bxc5 24. dxc5 Rxd1+ 25. Rxd1 Bd5) 22. axb5 {[%emt 0:00:24]} Qa8 {[%emt 0:00:26]} 23. Ba3 {[%emt 0:04:23]} Nf6 {[%emt 0:03:43]} 24. c5 {[%emt 0:04:13]} Bxf3 {[%emt 0:02:29]} (24... Bf8 $14) 25. Bxf3 $18 {[%emt 0:00:20]} Nd5 {[%emt 0:00:08]} 26. cxb6 {[%emt 0:10:36][%cal Oc1c7] Hoping for Rc7!} Rxc1 {[%emt 0:05:09]} 27. Rxc1 {[%emt 0:00:08]} (27. Bxc1 Qb8 28. Bg5 Rd7 $11) 27... Bxd4 {[%emt 0:01:02]} 28. Bb2 $36 {[%emt 0:11:37][%mdl 2048] White is on the roll.} Bxb2 {[%emt 0:01:29]} 29. Qxb2 {[%emt 0:02:01] Black must now prevent Rc7.} Qb8 {[%emt 0:00:22][%mdl 8192] Wards off Rc7} (29... a4 $16 {is more resistant.}) 30. Bxd5 {[%emt 0:05:01]} Rxd5 {[%emt 0:09:54][%mdl 4096] Endgame KQR-KQR} 31. Rc6 {[%emt 0:03:53]} Qd8 {[%emt 0:02:03]} (31... Rd1+ $142 32. Kg2 Rd8) 32. Kg2 {[%emt 0:01:10] White threatens b7 and mate.} Qa8 {[%emt 0:12:45] Against b7} (32... Qb8 {is a better defense.} 33. Qf6 (33. Qc3 Rd8 $18) 33... Rd7) 33. Qc3 {[%emt 0:05:22]} Rd8 {[%emt 0:02:57] Prevents .} 34. Qf6 {[%emt 0:01:19]} Rd7 {[%emt 0:02:21]} 35. Kh3 {[%emt 0:04:08]} (35. h4 $142) 35... Qb8 {[%emt 0:02:00]} 36. Qc3 {[%emt 0:05:03]} Rd8 {[%emt 0:01:00] Inhibits Rc8.} 37. Qe3 $2 {[%emt 0:05:15]} (37. Qxa5 $6 Qe5 $16) (37. Qa3 $18) 37... a4 $2 {[%emt 0:01:16][%mdl 8192]} (37... Rd5 $11) 38. Rc7 {[%emt 0:01:59]} a3 {[%emt 0:03:05]} 39. Ra7 $1 {[%emt 0:00:05]} (39. Qxa3 Qxb6 40. Qe7 Rf8 $14) 39... Qd6 $2 {[%emt 0:06:15]} (39... a2) 40. b7 $2 {[%emt 0:02:42]} (40. Rxa3 Rb8 $16) (40. Qxa3 Qxb6 41. Ra8 (41. Qe7 Rf8 $17) 41... Rxa8 42. Qxa8+ Kg7 43. Qa1+ Kf8 $11) (40. Qf3 Rf8 41. b7 (41. Rxa3 Qxb6 42. Rb3 Rc8 $11)) 40... Kg7 {[%emt 0:13:50]} (40... Qd5 41. Qxa3 Rb8) 41. Rxa3 {[%emt 0:37:30][%cal Oa3d3] aiming for Rd3!} Rb8 {[%emt 0:04:45]} 42. Ra7 {[%emt 0:00:00]} (42. Rd3 $18 {and the rest is easy.} Qc7 43. b6 (43. Qd4+ Kg8 $14) 43... Qxb7 44. Qe5+ Kg8 45. Qc7 Qxb6 46. Rd8+ {[%mdl 64] Deflection} Rxd8 47. Qxb6) 42... e5 {[%emt 0:02:26]} 43. b6 $1 {[%emt 0:00:00] White is more active.} f6 $2 {[%emt 0:04:46]} (43... h5 $16 {was called for.}) 44. Kg2 $1 {[%emt 0:00:00]} Qc6+ {[%emt 0:03:07]} (44... h5 $18 45. h4 Qc6+ 46. Kh2 Qb5) 45. f3 {[%emt 0:00:00]} (45. Kg1 $142) 45... Qc2+ {[%emt 0:00:49]} ({Better is} 45... g5) 46. Qf2 $16 {[%emt 0:00:00]} Qc6 {[%emt 0:03:05][%cal Oe5e4] [#]} 47. Ra8 $1 {[%emt 0:00:00][%mdl 512]} Rxb7 {[%emt 0:02:38]} 48. Ra7 {[%emt 0:00:00]} Rxa7 {[%emt 0:01:17]} 49. bxa7 $18 {[%emt 0:00:00] KQ-KQ} Qa6 {[%emt 0:00:31] Inhibits Qa2.} 50. g4 {[%emt 0:00:31]} (50. h4 $1 $16) 50... g5 $1 $14 {[%emt 0:02:44]} 51. Qe3 {[%emt 0:01:01]} Qa2+ {[%emt 0:01:03] White stays focused until the end.} 52. Kg3 {[%emt 0:00:22] Qb6 is the strong threat.} Qa1 {[%emt 0:00:29]} 53. h4 {[%emt 0:00:52]} gxh4+ {[%emt 0:00:24][%mdl 8192]} (53... h6 $16 54. Qb6 Qe1+ 55. Kh2 (55. Kg2 Qe2+ 56. Qf2 Qa6 $18) 55... Qe2+ 56. Kg1 Qe1+ 57. Kg2 Qe2+ 58. Kg1 (58. Qf2 Qa6 $18) 58... Qe1+ 59. Kh2 (59. Kg2 Qe2+ 60. Qf2 Qa6 $16) 59... Qe2+ 60. Kg1) 54. Kxh4 $18 {[%emt 0:00:14]} h6 {[%emt 0:01:03]} 55. f4 {[%emt 0:02:45] fxe5 would be deadly.} Qh1+ {[%emt 0:01:05]} 56. Kg3 {[%emt 0:00:47]} exf4+ {[%emt 0:01:28]} 57. Kxf4 {[%emt 0:00:04]} Qh2+ {[%emt 0:00:49]} 58. Kf3 {[%emt 0:04:02]} Qh3+ {[%emt 0:00:29] [#]} 59. Kf2 $1 {[%emt 0:00:13]} Qh2+ {[%emt 0:00:22]} 60. Ke1 {[%emt 0:00:09]} Qh1+ {[%emt 0:00:32]} 61. Ke2 {[%emt 0:00:30]} Qg2+ {[%emt 0:00:17]} 62. Kd3 {[%emt 0:01:33]} Qb7 {[%emt 0:00:59]} 63. Qc5 {[%emt 0:00:39]} Qf3+ {[%emt 0:00:49]} 64. Kc4 {[%emt 0:00:37]} Qb7 {[%emt 0:02:02]} 65. Qa5 $2 {[%emt 0:00:23]} ({White should play} 65. Kd4 $18 {And now Qa3 would win.} h5 66. gxh5 (66. Qxh5 Qxa7+ 67. Kd3 Qd7+ 68. Ke4 Qe7+ 69. Kf4 Qd6+ 70. Ke4 Qe7+ 71. Kf4 Qd6+ 72. Ke4 Qe7+ $11)) 65... Qe4+ $2 {[%emt 0:02:07][%mdl 8192]} (65... Qc6+ $11 66. Kd4 Qd6+ 67. Ke4 Qe6+ 68. Kf3 Qb3+ 69. Kf4 Qc4+ 70. Ke3 Qc1+ 71. Kd4 Qf4+ 72. Kc5 Qg5+ 73. Kb6 Qe3+ 74. Qc5 Qb3+ 75. Kc7 Qf7+ 76. Kc6 Qe6+ 77. Qd6 Qc4+ 78. Kb7 Qb3+ 79. Qb6 Qd5+ 80. Qc6 Qb3+ 81. Kc7 Qg3+ 82. Kd8 Qe5) 66. Kc5 {[%emt 0:00:04] White is clearly winning.} Qe7+ {[%emt 0:02:51]} 67. Kc6 {[%emt 0:00:12]} Qe6+ {[%emt 0:00:51]} 68. Kb7 {[%emt 0:00:51]} Qe4+ {[%emt 0:00:24] [#]} 69. Ka6 $1 {[%emt 0:00:17]} h5 {[%emt 0:02:14]} 70. Qb5 {[%emt 0:01:34]} ({Worse is} 70. Qxh5 Qc6+ 71. Ka5 Qc7+ 72. Kb4 (72. Ka6 Qc6+ 73. Ka5 Qc7+ 74. Kb4 Qxa7 $11) 72... Qxa7 $11) ({Less strong is} 70. Kb6 Qe6+ 71. Kb7 (71. Kc7 Qe7+ 72. Kc8 Qe6+ 73. Kc7 Qe7+ 74. Kb8 Qe8+ 75. Kb7 Qe4+ 76. Ka6 hxg4 $16) 71... Qe4+ 72. Ka6 hxg4 $14) 70... Qe6+ {[%emt 0:00:47]} 71. Ka5 {[%emt 0:00:11]} Qa2+ {[%emt 0:00:11]} 72. Kb6 {[%emt 0:00:01]} Qe6+ {[%emt 0:00:20]} 73. Qc6 {[%emt 0:00:11]} Qe3+ {[%emt 0:01:11]} 74. Kb7 {[%emt 0:00:05]} Qb3+ {[%emt 0:00:13]} 75. Kc7 {[%emt 0:00:27]} Qg3+ {[%emt 0:00:28]} 76. Kd8 {[%emt 0:00:39] Weighted Error Value: White=0.55/Black=0.45} 1-0

[Event "ETCC Open 2023"]
[Site "Budva"]
[Date "2023.11.11"]
[Round "1.62"]
[White "Krivokapic, Marko"]
[Black "Can, Emre"]
[Result "0-1"]
[ECO "C55"]
[WhiteElo "2386"]
[BlackElo "2566"]
[Annotator "RC"]
[PlyCount "52"]
[EventDate "2023.11.10"]
[EventType "team-tourn"]
[EventCountry "MNE"]
[SourceTitle "playchess.com"]
[Source "ChessBase"]
[SourceQuality "1"]
[WhiteTeam "Montenegro"]
[BlackTeam "Turkey"]
[WhiteTeamCountry "MNE"]
[BlackTeamCountry "TUR"]
[TimeControl "40/5400+30:1800+30"]

1. e4 {[%emt 0:00:04]} e5 {[%emt 0:00:23]} 2. Nf3 {[%emt 0:00:19]} Nc6 {[%emt 0:00:17]} 3. Bc4 {[%emt 0:00:32]} Nf6 {[%emt 0:00:38]} 4. d3 {[%emt 0:03:39]} h6 {[%emt 0:01:03]} 5. O-O {[%emt 0:01:01]} d6 {[%emt 0:00:30]} 6. c3 {[%emt 0:03:15]} g5 {[%emt 0:00:35]} 7. Nbd2 {[%emt 0:12:47]} Bg7 {[%emt 0:00:35]} 8. Bb3 {[%emt 0:03:21]} a5 {[%emt 0:00:44]} 9. a4 {[%emt 0:02:50]} d5 {[%emt 0:00:35]} 10. exd5 {[%emt 0:16:50]} Nxd5 {[%emt 0:00:21]} 11. Re1 {[%emt 0:03:50]} O-O {[%emt 0:01:01]} 12. Nc4 {[%emt 0:01:02]} Re8 {[%emt 0:06:22]} 13. h3 {[%emt 0:12:12]} Bf5 {[%emt 0:05:02]} 14. Na3 {[%emt 0:02:41]} Qd7 {[%emt 0:13:49]} 15. Nb5 {[%emt 0:01:22]} Re7 {[%emt 0:00:27]} 16. d4 {[%emt 0:09:45]} e4 {[%emt 0:02:27]} 17. Nh2 {[%emt 0:03:42]} Rae8 {[%emt 0:22:27]} 18. Bd2 {[%emt 0:01:48]} Nd8 {[%emt 0:04:07]} 19. Ng4 {[%emt 0:02:57]} c6 {[%emt 0:05:17]} 20. Na3 {[%emt 0:00:12]} Ne6 {[%emt 0:00:40]} 21. Nc4 {[%emt 0:07:01]} Nef4 {[%emt 0:01:52]} 22. Nce5 {[%emt 0:00:14]} Qc7 {[%emt 0:06:14]} 23. f3 {[%emt 0:02:17]} Bxg4 {[%emt 0:02:25]} 24. Bxf4 {[%emt 0:06:14]} Nxf4 {[%emt 0:03:49]} 25. Nxg4 {[%emt 0:01:05]} Nxh3+ {[%emt 0:01:57]} 26. gxh3 {[%emt 0:01:50]} Qg3+ {[%emt 0:00:07]} 0-1

[Event "ETCC Open 2023"]
[Site "Budva"]
[Date "2023.11.11"]
[Round "1.63"]
[White "Ali Marandi, Cemil Can"]
[Black "Draganic, Veljko"]
[Result "1-0"]
[ECO "A11"]
[WhiteElo "2544"]
[BlackElo "2294"]
[Annotator "RC"]
[PlyCount "47"]
[EventDate "2023.11.10"]
[EventType "team-tourn"]
[EventCountry "MNE"]
[SourceTitle "playchess.com"]
[Source "ChessBase"]
[SourceQuality "1"]
[WhiteTeam "Turkey"]
[BlackTeam "Montenegro"]
[WhiteTeamCountry "TUR"]
[BlackTeamCountry "MNE"]
[TimeControl "40/5400+30:1800+30"]

1. Nf3 {[%emt 0:00:05]} d5 {[%emt 0:00:06]} 2. g3 {[%emt 0:00:10]} Nf6 {[%emt 0:00:30]} 3. Bg2 {[%emt 0:03:40]} c6 {[%emt 0:00:31]} 4. O-O {[%emt 0:00:11]} Bf5 {[%emt 0:02:02]} 5. c4 {[%emt 0:03:16]} e6 {[%emt 0:03:26]} 6. d3 {[%emt 0:01:07]} Nbd7 {[%emt 0:03:07]} 7. Nc3 {[%emt 0:02:27]} h6 {[%emt 0:04:48]} 8. cxd5 {[%emt 0:01:09]} exd5 {[%emt 0:09:27]} 9. e4 {[%emt 0:01:17]} dxe4 {[%emt 0:10:52]} 10. dxe4 {[%emt 0:00:31]} Be6 {[%emt 0:20:14]} 11. e5 {[%emt 0:11:35]} Nd5 {[%emt 0:02:48]} 12. Nd4 {[%emt 0:00:19]} Nxc3 {[%emt 0:04:38]} 13. bxc3 {[%emt 0:01:54]} Nc5 {[%emt 0:01:30]} 14. Rb1 {[%emt 0:09:39]} Bd5 {[%emt 0:05:59]} 15. c4 {[%emt 0:05:30]} Bxg2 {[%emt 0:01:41]} 16. Kxg2 {[%emt 0:00:07]} Qd7 {[%emt 0:02:09]} 17. Be3 {[%emt 0:01:35]} g6 {[%emt 0:14:03]} 18. Qf3 {[%emt 0:02:57]} Ne6 {[%emt 0:05:12]} 19. Nxe6 {[%emt 0:03:04]} Qxe6 {[%emt 0:00:31]} 20. Rxb7 {[%emt 0:00:45]} Be7 {[%emt 0:04:03]} 21. Rd1 {[%emt 0:01:32]} Rd8 {[%emt 0:00:55]} 22. Rxd8+ {[%emt 0:00:39]} Bxd8 {[%emt 0:00:03]} 23. Bc5 {[%emt 0:00:41]} h5 {[%emt 0:00:32]} 24. Bd6 {[%emt 0:02:18]} 1-0

[Event "ETCC Open 2023"]
[Site "Budva"]
[Date "2023.11.11"]
[Round "1.64"]
[White "Miletic, Vuk"]
[Black "Yilmazyerli, Mert"]
[Result "1/2-1/2"]
[ECO "A45"]
[WhiteElo "2190"]
[BlackElo "2533"]
[Annotator "RC"]
[PlyCount "79"]
[EventDate "2023.11.10"]
[EventType "team-tourn"]
[EventCountry "MNE"]
[SourceTitle "playchess.com"]
[Source "ChessBase"]
[SourceQuality "1"]
[WhiteTeam "Montenegro"]
[BlackTeam "Turkey"]
[WhiteTeamCountry "MNE"]
[BlackTeamCountry "TUR"]
[TimeControl "40/5400+30:1800+30"]

1. d4 {[%emt 0:00:04]} Nf6 {[%emt 0:00:19]} 2. Bf4 {[%emt 0:00:17]} d6 {[%emt 0:01:03]} 3. Nc3 {[%emt 0:00:16]} Nbd7 {[%emt 0:00:11]} 4. Nf3 {[%emt 0:00:28]} c5 {[%emt 0:00:21]} 5. d5 {[%emt 0:01:41]} Qa5 {[%emt 0:00:09]} 6. Nd2 {[%emt 0:25:05]} b5 {[%emt 0:00:10]} 7. e4 {[%emt 0:02:15]} b4 {[%emt 0:00:46]} 8. Ncb1 {[%emt 0:05:05]} g6 {[%emt 0:10:22]} 9. Nc4 {[%emt 0:02:29]} Qc7 {[%emt 0:00:11]} 10. Nbd2 {[%emt 0:01:49]} Bg7 {[%emt 0:00:10]} 11. Bd3 {[%emt 0:03:16]} O-O {[%emt 0:00:12]} 12. O-O {[%emt 0:02:46]} Nb6 {[%emt 0:05:45]} 13. Qe2 {[%emt 0:12:15]} Nfd7 {[%emt 0:03:30]} 14. Rfe1 {[%emt 0:04:05]} Nxc4 {[%emt 0:03:49]} 15. Nxc4 {[%emt 0:00:10]} Ba6 {[%emt 0:00:11]} 16. Rab1 {[%emt 0:00:31]} Rab8 {[%emt 0:08:41]} 17. h4 {[%emt 0:04:03]} Bxc4 {[%emt 0:02:12]} 18. Bxc4 {[%emt 0:00:02]} h5 {[%emt 0:00:23]} 19. Bb5 {[%emt 0:07:58]} Ne5 {[%emt 0:01:08]} 20. Bxe5 {[%emt 0:03:06]} Bxe5 {[%emt 0:00:13]} 21. g3 {[%emt 0:00:25]} Qc8 {[%emt 0:06:34]} 22. Kg2 {[%emt 0:02:07]} Kg7 {[%emt 0:02:54]} 23. Bc4 {[%emt 0:06:22]} Qg4 {[%emt 0:02:38]} 24. f4 {[%emt 0:04:20]} Qxe2+ {[%emt 0:00:14]} 25. Rxe2 {[%emt 0:00:04]} Bd4 {[%emt 0:00:04]} 26. e5 {[%emt 0:05:21]} dxe5 {[%emt 0:04:43]} 27. fxe5 {[%emt 0:00:01]} e6 {[%emt 0:00:57]} 28. dxe6 {[%emt 0:04:07]} fxe6 {[%emt 0:00:10]} 29. Bxe6 {[%emt 0:03:19]} Rbe8 {[%emt 0:00:22]} 30. Bc4 {[%emt 0:00:55]} Rxe5 {[%emt 0:00:16]} 31. Rbe1 {[%emt 0:00:42]} Rxe2+ {[%emt 0:13:29]} 32. Rxe2 {[%emt 0:00:06]} Bxb2 {[%emt 0:00:30]} 33. Re7+ {[%emt 0:00:09]} Kh6 {[%emt 0:00:34]} 34. Rxa7 {[%emt 0:00:08]} Bd4 {[%emt 0:00:07]} 35. Rf7 {[%emt 0:01:10]} Re8 {[%emt 0:01:22]} 36. Bd3 {[%emt 0:00:53]} Re3 {[%emt 0:00:52]} 37. Rf3 {[%emt 0:00:11]} Re7 {[%emt 0:01:28]} 38. Rf4 {[%emt 0:00:54]} Kg7 {[%emt 0:00:19]} 39. Re4 {[%emt 0:00:25]} Rxe4 {[%emt 0:00:43]} 40. Bxe4 {[%emt 0:00:01]} 1/2-1/2

[Event "ETCC Open 2023"]
[Site "Budva"]
[Date "2023.11.11"]
[Round "1.65"]
[White "Nielsen, Hogni Egilstoft"]
[Black "Theodorou, Nikolas"]
[Result "0-1"]
[ECO "C55"]
[WhiteElo "2387"]
[BlackElo "2619"]
[Annotator "TA"]
[PlyCount "102"]
[EventDate "2023.11.10"]
[EventType "team-tourn"]
[EventCountry "MNE"]
[SourceTitle "playchess.com"]
[Source "ChessBase"]
[SourceQuality "1"]
[WhiteTeam "Faroe Islands"]
[BlackTeam "Greece"]
[WhiteTeamCountry "FAI"]
[BlackTeamCountry "GRE"]
[TimeControl "40/5400+30:1800+30"]

{[%evp 9,102,35,47,33,35,26,47,-3,18,13,0,13,20,14,24,2,25,44,12,0,8,0,0,-64,-26,-87,-82,-81,-81,-79,-61,-59,-31,-32,-27,-26,-34,-28,-25,-16,-18,-40,-53,-48,-21,-25,-22,-33,-36,-40,-18,-21,-10,-15,-15,-11,-17,-11,-13,-30,-27,-36,-36,-69,-77,-181,-193,-195,-153,-161,-162,-249,-246,-393,-383,-411,-275,-315,-324,-325,-318,-300,-279,-329,-298,-328,-323,-383,-327,-330,-338,-604,-587,-512,-504]} 1. e4 {[%emt 0:00:05]} e5 {[%emt 0:00:20]} 2. Nf3 {[%emt 0:00:23]} Nc6 {[%emt 0:00:08]} 3. Bc4 {[%emt 0:00:33]} Nf6 {[%emt 0:00:21]} 4. d3 {[%emt 0:00:26]} h6 {[%emt 0:00:44]} 5. c3 {[%emt 0:05:43]} d6 {[%emt 0:01:01]} 6. a4 {[%emt 0:05:18] C55: Two Knights: 4 d3, 4 d4 exd4 5 e5 and Max Lange Attack.} g6 {[%emt 0:01:13]} 7. Nbd2 {[%emt 0:12:35]} Bg7 {[%emt 0:00:45]} 8. Nf1 {[%emt 0:12:44]} (8. b4 $14) 8... O-O {[%emt 0:02:47]} 9. Ng3 {[%emt 0:05:22]} d5 {[%emt 0:03:58]} 10. exd5 {[%emt 0:00:59]} Nxd5 {[%emt 0:00:08]} 11. O-O {[%emt 0:04:19] [#]} Kh7 $146 {[%emt 0:09:10]} ({Predecessor:} 11... a6 12. Re1 Be6 13. a5 Qc8 14. Qb3 Rd8 15. Qa2 f5 16. Bd2 Bf7 17. Rad1 Rd7 {0-1 Alonso Garcia,A (2242)-Ladron de Guevara Pinto,P (2429) La Roda op 46th 2019 (7)}) 12. a5 {[%emt 0:02:35]} Rb8 {[%emt 0:04:31]} 13. Re1 {[%emt 0:08:07]} f5 {[%emt 0:09:15]} 14. h3 {[%emt 0:07:27]} (14. h4 {seems wilder.} Qd6 15. Qb3 Nde7 16. Qa4) 14... Be6 {[%emt 0:16:06]} 15. Bb5 {[%emt 0:04:59]} Nde7 {[%emt 0:04:02]} 16. Qa4 {[%emt 0:09:38]} (16. a6 $11) 16... Bd5 {[%emt 0:05:30]} 17. Nh2 {[%emt 0:00:25]} (17. a6 $11) 17... a6 $17 {[%emt 0:01:53]} 18. Bc4 {[%emt 0:00:51]} Bxc4 {[%emt 0:01:11]} 19. Qxc4 {[%emt 0:01:24]} Qd7 {[%emt 0:03:01]} 20. Nf3 {[%emt 0:09:57]} Rbd8 {[%emt 0:05:48]} (20... Qd5 {simplifies} 21. Qxd5 Nxd5 22. Bd2 Rbe8) 21. Bg5 $1 {[%emt 0:02:21]} Qxd3 {[%emt 0:05:32]} (21... hxg5 {leads to mate.} 22. Nxg5+ Kh8 23. Qh4+) 22. Qxd3 {[%emt 0:00:18]} Rxd3 {[%emt 0:00:03]} 23. Bxe7 {[%emt 0:00:21]} Nxe7 {[%emt 0:00:02]} 24. Nxe5 {[%emt 0:00:25]} Rd5 {[%emt 0:01:37]} 25. Nd3 {[%emt 0:03:41] Excellent horsemanship.} Nc6 {[%emt 0:10:30]} 26. Nf4 {[%emt 0:00:18]} Rd6 {[%emt 0:01:13]} 27. Ne6 $1 {[%emt 0:01:56]} Rf7 {[%emt 0:00:09]} 28. Nxg7 {[%emt 0:00:44]} Kxg7 {[%emt 0:00:11]} 29. b4 {[%emt 0:00:31]} Rd3 {[%emt 0:01:11]} 30. Rac1 {[%emt 0:00:22]} Re7 {[%emt 0:03:13] Hoping for ...Rxe1+.} 31. Kf1 {[%emt 0:00:40]} Red7 {[%emt 0:01:19]} 32. Ne2 {[%emt 0:00:29]} g5 {[%emt 0:02:01] Wards off Nf4} 33. Ng3 {[%emt 0:00:03]} Kf6 {[%emt 0:00:09]} 34. Re8 {[%emt 0:00:24]} Rd8 {[%emt 0:02:08]} 35. Rxd8 {[%emt 0:01:02]} Rxd8 $11 {[%emt 0:00:03][%mdl 4096] Endgame KRN-KRN} 36. Ke2 {[%emt 0:00:29]} Ne5 {[%emt 0:02:41]} 37. Rd1 {[%emt 0:00:32]} (37. Rb1 $17) 37... Rxd1 $19 {[%emt 0:01:05]} 38. Kxd1 {[%emt 0:00:02] [#] KN-KN} Nd3 $1 {[%emt 0:00:07]} 39. Ke2 {[%emt 0:00:58] [#]} Nf4+ {[%emt 0:00:06]} 40. Kf3 {[%emt 0:00:33]} (40. Kf1 $142) 40... Ke5 {[%emt 0:00:53]} 41. c4 {[%emt 0:14:17]} (41. Nf1 $142) 41... Nd3 {[%emt 0:04:11]} 42. b5 {[%emt 0:00:10]} Nb2 {[%emt 0:07:22]} 43. c5 {[%emt 0:00:46]} axb5 {[%emt 0:02:00]} 44. c6 {[%emt 0:00:31]} bxc6 {[%emt 0:00:02]} 45. a6 {[%emt 0:01:19] Threatens to win with a7.} Nc4 {[%emt 0:00:08]} 46. Nf1 {[%emt 0:01:05]} Nb6 {[%emt 0:01:19]} 47. Ne3 {[%emt 0:01:12]} h5 {[%emt 0:02:46]} 48. Ke2 {[%emt 0:01:04]} c5 {[%emt 0:00:43]} 49. a7 {[%emt 0:00:10]} f4 {[%emt 0:01:21]} 50. Nd1 {[%emt 0:00:16]} (50. Nf1) 50... Kd4 {[%emt 0:02:38]} 51. Kd2 {[%emt 0:01:51]} b4 {[%emt 0:00:17] Wards off Nc3.   Weighted Error Value: White=0.29 (precise) /Black=0.10 (very precise)} 0-1